bitfinex-derivatives/quotes_BTCF0:USTF0_20241221
["timestamp","ask_amount","ask_price","bid_price","bid_amount"]
[1734772562313,0.01031479,98513.0,98512.0,0.001]
[1734772562513,0.02058958,98513.0,98512.0,0.001]
[1734772562718,0.03086446,98513.0,98512.0,0.001]
[1734772562923,0.03086446,98513.0,98512.0,0.051773]
[1734772563224,0.01027488,98518.0,98517.0,0.05077]
[1734772563625,0.09083139,98521.0,98520.0,0.050768]
[1734772564121,0.09083139,98521.0,98520.0,0.050848]
[1734772564622,0.050765,98527.0,98525.0,0.050766]
[1734772565022,0.050765,98527.0,98526.0,8e-05]
[1734772565218,0.09083139,98528.0,98526.0,8e-05]
[1734772565219,0.09083139,98528.0,98527.0,0.050765]
[1734772565615,0.09083139,98528.0,98527.0,0.050845]
[1734772566225,0.09083139,98529.0,98527.0,0.050845]
[1734772566723,0.09083139,98529.0,98528.0,8e-05]
[1734772567226,0.09192071,98529.0,98528.0,8e-05]
[1734772567926,0.09192071,98529.0,98528.0,0.18231236]
[1734772567927,0.00808932,98529.0,98528.0,0.18231236]
[1734772568121,0.01008932,98529.0,98528.0,0.18231236]
[1734772569526,0.00808932,98529.0,98528.0,8e-05]
[1734772569721,0.01008932,98529.0,98528.0,0.00108]
[1734772570121,0.01008932,98529.0,98528.0,0.01632]
[1734772571524,0.01036381,98529.0,98528.0,0.01632]
[1734772572635,0.0106383,98529.0,98528.0,0.00108]
[1734772573724,0.01091279,98529.0,98528.0,0.00108]
[1734772574925,0.01118623,98529.0,98528.0,0.00108]
[1734772576533,0.02134459,98529.0,98528.0,0.00108]
[1734772576737,0.02134471,98529.0,98528.0,0.00108]
[1734772576925,0.02162283,98529.0,98528.0,0.00108]
[1734772579442,0.02190042,98529.0,98528.0,0.00108]
[1734772580627,0.0219356,98529.0,98528.0,0.00108]
[1734772581733,0.02202531,98529.0,98528.0,0.00108]
[1734772582435,0.01186683,98529.0,98528.0,0.00108]
[1734772582627,0.02207616,98529.0,98528.0,0.00108]
[1734772583026,0.02007616,98529.0,98528.0,0.00108]
[1734772583233,0.01407616,98529.0,98528.0,8e-05]
[1734772583720,0.01307616,98529.0,98528.0,8e-05]
[1734772583925,0.01407616,98529.0,98528.0,8e-05]
[1734772584336,0.01307616,98529.0,98528.0,8e-05]
[1734772584524,0.01407616,98529.0,98528.0,8e-05]
[1734772584729,0.41127616,98529.0,98514.0,0.3045432]
[1734772585051,0.050811,98515.0,98514.0,0.2461432]
[1734772585437,0.09828567,98515.0,98514.0,0.1877432]
[1734772585627,0.1011525,98515.0,98514.0,0.1293432]
[1734772585941,0.1011525,98515.0,98514.0,0.0125432]
[1734772586241,0.050776,98506.0,98505.0,0.18233227]
[1734772586427,0.42195067,98506.0,98505.0,0.18233227]
[1734772586626,0.4248575,98506.0,98505.0,0.18233227]
[1734772586831,0.050781,98496.0,98495.0,7.405e-05]
[1734772587140,0.050781,98496.0,98489.0,0.36545184]
[1734772587141,0.050784,98490.0,98489.0,0.36545184]
[1734772587343,0.42195867,98490.0,98489.0,0.36545184]
[1734772587639,0.050789,98481.0,98480.0,0.06491465]
[1734772587940,0.050789,98480.0,98471.0,0.06491465]
[1734772588135,0.01040074,98479.0,98471.0,0.06491465]
[1734772588442,4e-05,98473.0,98471.0,0.06491465]
[1734772588632,4e-05,98473.0,98470.0,0.050794]
[1734772588831,0.00290683,98473.0,98470.0,0.050794]
[1734772589333,0.00290683,98473.0,98472.0,0.00252317]
[1734772589735,0.00290683,98473.0,98472.0,0.05331617]
[1734772590633,0.00290683,98473.0,98472.0,0.00252317]
[1734772590832,0.00690683,98473.0,98472.0,0.00152317]
[1734772591237,0.01590683,98473.0,98472.0,0.00252317]
[1734772593345,0.37670683,98473.0,98472.0,0.00252317]
[1734772594141,0.42749983,98473.0,98472.0,0.00252317]
[1734772594441,0.42349983,98473.0,98472.0,0.00252317]
[1734772594946,0.41549983,98473.0,98472.0,0.00152317]
[1734772595433,0.050797,98465.0,98460.0,0.09901967]
[1734772595747,4e-05,98461.0,98460.0,0.09901967]
[1734772597042,0.00290683,98461.0,98460.0,0.09901967]
[1734772597236,0.00390683,98461.0,98460.0,0.3608]
[1734772597545,0.00390683,98461.0,98460.0,0.3638]
[1734772599945,0.00390683,98461.0,98460.0,0.3993]
[1734772601348,0.00390683,98461.0,98460.0,0.3638]
[1734772601536,0.05470583,98461.0,98460.0,0.003]
[1734772605241,0.05370583,98461.0,98460.0,0.003]
[1734772605544,0.05370583,98461.0,98460.0,0.004]
[1734772605746,0.05370583,98461.0,98460.0,5.247e-05]
[1734772606350,0.05370583,98461.0,98460.0,0.00205247]
[1734772609058,0.00290683,98461.0,98460.0,0.00205247]
[1734772610138,0.09076305,98468.0,98460.0,0.00205247]
[1734772610338,0.09076305,98468.0,98467.0,0.050796]
[1734772610542,0.09076305,98468.0,98467.0,0.050876]
[1734772610956,0.05079,98478.0,98472.0,0.050793]
[1734772610957,0.09076305,98474.0,98472.0,0.050793]
[1734772611455,0.09076305,98474.0,98473.0,8e-05]
[1734772611955,0.09476305,98474.0,98473.0,8e-05]
[1734772613155,0.004,98474.0,98473.0,8e-05]
[1734772613450,0.003,98474.0,98473.0,0.03558]
[1734772614050,0.050792,98475.0,98473.0,0.03558]
[1734772614356,0.002,98474.0,98473.0,0.0355]
[1734772616150,0.050792,98475.0,98473.0,0.0355]
[1734772616451,0.002,98475.0,98473.0,0.0355]
[1734772616647,0.002,98475.0,98473.0,0.086292]
[1734772616852,0.002,98474.0,98473.0,0.086292]
[1734772617257,0.15158053,98476.0,98473.0,0.086292]
[1734772617458,8.404e-05,98481.0,98473.0,0.086292]
[1734772617459,0.002,98475.0,98473.0,0.086292]
[1734772617845,0.05079,98479.0,98473.0,0.086292]
[1734772618051,0.002,98474.0,98473.0,0.086292]
[1734772619462,0.05355195,98474.0,98473.0,0.086292]
[1734772620157,0.05555195,98474.0,98473.0,0.086292]
[1734772620357,0.05555195,98474.0,98473.0,0.0355]
[1734772622763,0.41535195,98474.0,98468.0,0.01790274]
[1734772623064,0.050798,98462.0,98460.0,0.05323258]
[1734772623365,4e-05,98461.0,98460.0,0.05323258]
[1734772624954,0.05359195,98461.0,98460.0,0.05423258]
[1734772625558,0.05359195,98461.0,98460.0,0.0369]
[1734772625862,0.10439095,98461.0,98460.0,0.002]
[1734772627262,0.12031722,98461.0,98460.0,0.002]
[1734772628364,0.050805,98450.0,98449.0,0.01641293]
[1734772628558,0.050808,98444.0,98436.0,0.050812]
[1734772628756,8.404e-05,98450.0,98435.0,0.03762364]
[1734772628757,0.05081,98440.0,98435.0,0.03762364]
[1734772629064,4e-05,98439.0,98435.0,0.03762364]
[1734772629263,4e-05,98439.0,98438.0,0.0159484]
[1734772629459,4e-05,98439.0,98438.0,8.192e-05]
[1734772631264,4e-05,98439.0,98438.0,0.00108192]
[1734772631964,4e-05,98439.0,98438.0,8.192e-05]
[1734772632156,4e-05,98439.0,98438.0,0.05089292]
[1734772632662,0.12113399,98439.0,98438.0,0.05089292]
[1734772633164,0.06173399,98439.0,98438.0,0.05089292]
[1734772633753,0.06173399,98439.0,98438.0,0.41169292]
[1734772633954,0.06273399,98439.0,98438.0,0.41169292]
[1734772634456,8.404e-05,98450.0,98445.0,0.050807]
[1734772634668,8.404e-05,98450.0,98438.0,0.36288192]
[1734772634850,8.404e-05,98450.0,98449.0,8e-05]
[1734772634851,0.05088904,98450.0,98449.0,8e-05]
[1734772635957,0.05088904,98450.0,98449.0,0.00108]
[1734772638463,0.1429012,98452.0,98449.0,0.00108]
[1734772638663,0.2119979,98473.0,98453.0,0.050803]
[1734772638967,0.2119979,98473.0,98472.0,8e-05]
[1734772639864,0.050791,98477.0,98472.0,8e-05]
[1734772640065,0.009,98473.0,98472.0,8e-05]
[1734772640264,0.009,98473.0,98471.0,0.050793]
[1734772641169,0.013,98473.0,98471.0,0.050793]
[1734772642170,0.050794,98472.0,98470.0,0.01639045]
[1734772642470,4e-05,98471.0,98466.0,0.3608]
[1734772642968,4e-05,98467.0,98466.0,0.3608]
[1734772643463,0.03714,98467.0,98466.0,0.3608]
[1734772645093,0.03714,98467.0,98466.0,0.3618]
[1734772645368,0.12794424,98467.0,98466.0,0.3618]
[1734772647764,0.12794424,98467.0,98466.0,0.001]
[1734772648469,0.03714,98467.0,98466.0,0.001]
[1734772649571,0.087936,98467.0,98466.0,0.001]
[1734772649774,0.448736,98467.0,98466.0,0.001]
[1734772650971,0.087936,98467.0,98466.0,0.001]
[1734772651361,0.088936,98467.0,98457.0,0.09901967]
[1734772651565,0.00304,98467.0,98465.0,0.050796]
[1734772651767,0.003,98467.0,98465.0,0.050796]
[1734772652167,0.050789,98480.0,98475.0,0.050792]
[1734772652769,0.050789,98480.0,98479.0,8e-05]
[1734772654878,0.054789,98480.0,98479.0,8e-05]
[1734772655070,0.054789,98480.0,98475.0,0.050792]
[1734772655574,0.054789,98480.0,98478.0,0.05079]
[1734772655875,0.005,98480.0,98478.0,0.05079]
[1734772656178,0.005,98480.0,98479.0,0.0392]
[1734772656774,0.001,98480.0,98479.0,0.0392]
[1734772657272,0.0391,98500.0,98499.0,0.050779]
[1734772657764,0.0391,98500.0,98499.0,0.050859]
[1734772658571,0.0481,98500.0,98499.0,0.050859]
[1734772658876,0.009,98500.0,98499.0,0.050859]
[1734772659667,0.013,98500.0,98499.0,0.050859]
[1734772660377,0.009,98500.0,98499.0,0.050859]
[1734772660681,0.3608,98506.0,98505.0,0.050776]
[1734772661071,0.3608,98506.0,98505.0,0.050856]
[1734772661571,0.1413973,98511.0,98505.0,8e-05]
[1734772661771,0.1413973,98511.0,98509.0,0.050774]
[1734772661974,0.1413973,98511.0,98510.0,8e-05]
[1734772662178,0.0906243,98511.0,98510.0,8e-05]
[1734772662475,0.0906243,98511.0,98510.0,0.36088]
[1734772662775,0.0916243,98511.0,98510.0,0.36088]
[1734772662968,0.001,98511.0,98510.0,0.36088]
[1734772663475,0.0906243,98517.0,98516.0,0.050771]
[1734772663779,0.0906243,98517.0,98516.0,0.050851]
[1734772664167,0.3608,98524.0,98520.0,0.050768]
[1734772664370,0.3608,98524.0,98522.0,0.050767]
[1734772664676,0.3608,98524.0,98523.0,8e-05]
[1734772664984,0.0381,98528.0,98527.0,0.050765]
[1734772665176,0.0906243,98529.0,98527.0,0.050765]
[1734772665369,0.0906243,98531.0,98530.0,0.050763]
[1734772665768,0.0906243,98531.0,98530.0,0.050843]
[1734772666779,0.0956243,98531.0,98530.0,0.050843]
[1734772667182,0.005,98531.0,98530.0,0.050843]
[1734772668075,0.014,98531.0,98530.0,0.050843]
[1734772668683,0.009,98531.0,98530.0,0.051843]
[1734772669972,0.0379,98538.0,98536.0,0.05076]
[1734772670378,0.0379,98538.0,98537.0,8e-05]
[1734772670980,0.0409,98538.0,98537.0,8e-05]
[1734772671184,0.0419,98538.0,98537.0,8e-05]
[1734772671777,0.0409,98538.0,98537.0,8e-05]
[1734772671977,0.092659,98538.0,98537.0,8e-05]
[1734772674889,0.0419,98538.0,98537.0,8e-05]
[1734772677488,0.0419,98538.0,98536.0,0.05073723]
[1734772677988,4e-05,98537.0,98536.0,0.05073723]
[1734772680290,0.00104,98537.0,98536.0,0.05073723]
[1734772680788,0.050762,98532.0,98530.0,0.050843]
[1734772681183,4e-05,98531.0,98530.0,0.050843]
[1734772681685,4e-05,98531.0,98530.0,8e-05]
[1734772684097,0.00604,98531.0,98530.0,0.00108]
[1734772684396,0.00804,98531.0,98530.0,0.00108]
[1734772686994,0.05969118,98531.0,98530.0,0.00108]
[1734772687188,0.41449118,98531.0,98513.0,0.34116]
[1734772687396,0.3608,98517.0,98513.0,0.34116]
[1734772687590,4e-05,98514.0,98513.0,0.34116]
[1734772689201,0.050812,98514.0,98513.0,0.34116]
[1734772690086,0.051812,98514.0,98513.0,0.34116]
[1734772690491,0.051812,98514.0,98513.0,0.391932]
[1734772690992,0.00104,98514.0,98513.0,0.391932]
[1734772693390,0.00104,98514.0,98513.0,0.34216]
[1734772694099,0.00104,98514.0,98513.0,0.34416]
[1734772694100,4e-05,98514.0,98513.0,0.34416]
[1734772694503,4e-05,98514.0,98513.0,0.34316]
[1734772694701,0.15143644,98514.0,98513.0,0.34316]
[1734772695797,4e-05,98514.0,98513.0,0.34316]
[1734772696505,4e-05,98514.0,98513.0,0.34216]
[1734772696693,4e-05,98514.0,98513.0,0.34316]
[1734772696890,4e-05,98514.0,98513.0,0.37886]
[1734772697904,0.15139644,98520.0,98519.0,0.050769]
[1734772698304,0.15139644,98520.0,98519.0,0.050849]
[1734772698806,0.15139644,98520.0,98519.0,0.411649]
[1734772699008,0.12124531,98522.0,98520.0,0.050768]
[1734772699199,0.06264531,98522.0,98520.0,0.087768]
[1734772699396,0.06264531,98522.0,98521.0,8e-05]
[1734772700307,0.050759,98538.0,98521.0,8e-05]
[1734772700308,0.09095107,98528.0,98521.0,8e-05]
[1734772700507,0.09095107,98528.0,98527.0,0.050765]
[1734772700902,0.09095107,98528.0,98527.0,0.050845]
[1734772701610,0.05076,98537.0,98535.0,0.05076]
[1734772702011,0.05076,98537.0,98536.0,8e-05]
[1734772702697,0.05176,98537.0,98536.0,8e-05]
[1734772703408,0.05376,98537.0,98536.0,8e-05]
[1734772703608,0.05476,98537.0,98536.0,8e-05]
[1734772709806,0.41556,98537.0,98536.0,8e-05]
[1734772710317,0.46696816,98537.0,98536.0,8e-05]
[1734772711017,0.05077,98518.0,98514.0,0.050771]
[1734772711410,4e-05,98515.0,98514.0,0.050771]
[1734772711914,4e-05,98515.0,98514.0,0.06598473]
[1734772712216,4e-05,98515.0,98514.0,0.06898473]
[1734772712406,4e-05,98515.0,98514.0,0.07398473]
[1734772712807,4e-05,98515.0,98514.0,0.06898473]
[1734772713017,0.00104,98515.0,98514.0,0.07398473]
[1734772714419,0.00104,98515.0,98514.0,0.07098473]
[1734772714617,0.00104,98515.0,98514.0,0.07498473]
[1734772715114,0.00104,98515.0,98514.0,0.06998473]
[1734772715115,4e-05,98515.0,98514.0,0.06998473]
[1734772715318,0.00104,98515.0,98514.0,0.07398473]
[1734772716015,0.00104,98515.0,98514.0,0.07098473]
[1734772716210,0.051811,98515.0,98514.0,0.07398473]
[1734772718112,0.14279034,98515.0,98514.0,0.02321373]
[1734772718513,0.14379034,98515.0,98514.0,0.01821373]
[1734772718914,0.14179034,98515.0,98514.0,0.01821373]
[1734772719223,0.051811,98515.0,98514.0,0.01521373]
[1734772719520,0.050811,98515.0,98513.0,0.050772]
[1734772719708,0.051811,98515.0,98513.0,0.050772]
[1734772720023,4e-05,98514.0,98513.0,0.050772]
[1734772720823,4e-05,98514.0,98513.0,0.06547846]
[1734772722416,0.00104,98514.0,98513.0,0.06547846]
[1734772722925,4e-05,98514.0,98513.0,0.06547846]
[1734772723113,0.00104,98514.0,98513.0,0.06547846]
[1734772723524,0.00104,98514.0,98513.0,0.01470646]
[1734772723720,0.00104,98514.0,98510.0,0.18224535]
[1734772723927,0.00104,98514.0,98509.0,0.19900792]
[1734772723928,0.050773,98511.0,98509.0,0.19900792]
[1734772724122,0.050773,98511.0,98509.0,0.19830617]
[1734772724123,0.050813,98511.0,98509.0,0.19830617]
[1734772724319,4e-05,98510.0,98509.0,0.19830617]
[1734772725026,4e-05,98510.0,98509.0,0.01606082]
[1734772725417,4e-05,98510.0,98509.0,0.01706082]
[1734772725622,4e-05,98510.0,98509.0,0.00352257]
[1734772725922,0.36084,98510.0,98509.0,0.002]
[1734772726122,0.40174,98510.0,98509.0,0.002]
[1734772727022,0.41696254,98510.0,98509.0,0.002]
[1734772727630,0.56859477,98510.0,98509.0,0.002]
[1734772728022,0.56859477,98510.0,98492.0,0.18224535]
[1734772728226,0.050782,98493.0,98492.0,0.18224535]
[1734772728427,0.050822,98493.0,98492.0,0.18224535]
[1734772728819,0.09100791,98493.0,98483.0,0.18224535]
[1734772729022,0.050787,98484.0,98483.0,0.18224535]
[1734772729523,0.050827,98484.0,98483.0,0.18224535]
[1734772729921,0.050827,98484.0,98483.0,0.18524535]
[1734772730325,0.050827,98484.0,98483.0,0.003]
[1734772731129,0.050827,98484.0,98461.0,0.18224535]
[1734772731130,4e-05,98484.0,98461.0,0.18224535]
[1734772731332,0.050798,98462.0,98461.0,0.18224535]
[1734772731522,0.050798,98462.0,98457.0,0.18224535]
[1734772731523,4e-05,98462.0,98457.0,0.18224535]
[1734772731831,0.05084,98458.0,98457.0,0.19707814]
[1734772733033,0.05084,98458.0,98457.0,0.01583279]
[1734772733224,0.05084,98458.0,98457.0,0.01783279]
[1734772741035,0.05084,98458.0,98457.0,0.003]
[1734772742434,0.41164,98458.0,98457.0,0.003]
[1734772742731,0.41264,98458.0,98457.0,0.001]
[1734772743333,0.050809,98442.0,98441.0,0.00152358]
[1734772743525,0.411609,98442.0,98441.0,0.00152358]
[1734772743730,0.411649,98442.0,98441.0,0.00152358]
[1734772744734,0.412649,98442.0,98441.0,0.00552358]
[1734772748736,0.050811,98437.0,98410.0,0.14001967]
[1734772749035,4e-05,98414.0,98411.0,0.01524]
[1734772749234,0.050863,98414.0,98411.0,0.01528]
[1734772749435,0.050863,98414.0,98410.0,0.14001967]
[1734772749644,0.050863,98414.0,98413.0,0.37597531]
[1734772749841,0.05093779,98414.0,98413.0,0.37597531]
[1734772750839,0.05793779,98414.0,98413.0,0.37597531]
[1734772751044,0.06093779,98414.0,98413.0,0.37597531]
[1734772752243,0.050825,98410.0,98409.0,0.34128]
[1734772752645,0.050865,98410.0,98409.0,0.34128]
[1734772753438,0.057865,98410.0,98409.0,0.34128]
[1734772753635,0.050829,98402.0,98400.0,0.1]
[1734772754043,0.03834,98401.0,98400.0,0.1]
[1734772756650,0.04933359,98401.0,98400.0,0.1]
[1734772758445,0.04933359,98401.0,98390.0,0.00152419]
[1734772758446,0.050835,98391.0,98390.0,0.00152419]
[1734772758645,0.411635,98391.0,98390.0,0.00152419]
[1734772758947,0.411675,98391.0,98390.0,0.00152419]
[1734772759549,0.412675,98391.0,98390.0,0.00152419]
[1734772760151,0.413675,98391.0,98390.0,0.00152419]
[1734772760352,0.050838,98385.0,98384.0,0.01395061]
[1734772760549,0.050838,98385.0,98380.0,0.11429967]
[1734772760855,4e-05,98384.0,98380.0,0.11429967]
[1734772761239,4e-05,98384.0,98373.0,0.70352]
[1734772761240,0.01014001,98384.0,98373.0,0.70352]
[1734772761553,0.00012192,98384.0,98373.0,0.70216]
[1734772762052,0.05084,98383.0,98365.0,0.01390875]
[1734772762247,0.050848,98366.0,98365.0,0.01390875]
[1734772762446,0.050888,98366.0,98365.0,0.01390875]
[1734772762645,0.050888,98366.0,98357.0,0.1167]
[1734772762847,4e-05,98366.0,98357.0,0.1167]
[1734772763048,4e-05,98358.0,98357.0,0.1167]
[1734772763246,4e-05,98358.0,98357.0,0.18126963]
[1734772763650,4e-05,98358.0,98357.0,0.167552]
[1734772764055,0.00104,98358.0,98357.0,0.167552]
[1734772764351,0.00204,98358.0,98357.0,0.167552]
[1734772765543,0.00104,98358.0,98357.0,0.167552]
[1734772765749,0.00304,98358.0,98357.0,0.167552]
[1734772765950,0.00604,98358.0,98357.0,0.167552]
[1734772766454,0.00204,98358.0,98357.0,0.18134617]
[1734772769169,0.00204,98358.0,98357.0,0.13049417]
[1734772769555,0.050853,98357.0,98356.0,0.00152494]
[1734772769861,0.050893,98357.0,98356.0,0.00152494]
[1734772772054,0.00104,98357.0,98356.0,0.00152494]
[1734772772255,0.01000158,98369.0,98356.0,0.11642494]
[1734772772458,0.0904151,98372.0,98370.0,0.050846]
[1734772773261,0.0904151,98372.0,98368.0,0.36088]
[1734772773262,0.050846,98370.0,98368.0,0.36088]
[1734772773458,0.050846,98370.0,98368.0,8e-05]
[1734772773653,4e-05,98369.0,98368.0,8e-05]
[1734772775364,4e-05,98369.0,98368.0,0.00108]
[1734772775761,0.00104,98369.0,98368.0,0.00208]
[1734772776065,0.00104,98369.0,98368.0,0.00308]
[1734772778459,0.00104,98369.0,98368.0,0.01711867]
[1734772778661,0.00104,98369.0,98368.0,0.00308]
[1734772779068,0.01101247,98369.0,98368.0,0.00308]
[1734772779573,0.00104,98369.0,98368.0,0.00308]
[1734772779761,0.01101075,98369.0,98368.0,0.00308]
[1734772779963,0.00104,98369.0,98368.0,0.00308]
[1734772780269,0.01101095,98369.0,98368.0,0.00308]
[1734772781372,0.01102791,98369.0,98368.0,0.00308]
[1734772781868,0.01102791,98369.0,98368.0,0.01715913]
[1734772782265,0.01102791,98369.0,98368.0,0.01850625]
[1734772783373,0.01102791,98369.0,98368.0,0.01902299]
[1734772784771,0.01102791,98369.0,98368.0,0.01953973]
[1734772785770,0.01102791,98369.0,98368.0,0.02005647]
[1734772787468,0.16266014,98369.0,98368.0,0.00597734]
[1734772788475,0.01102791,98369.0,98368.0,0.00597734]
[1734772790277,0.01102791,98369.0,98368.0,0.00631199]
[1734772790668,0.01102791,98369.0,98368.0,0.00807132]
[1734772791974,0.06089717,98369.0,98368.0,0.00807132]
[1734772792875,0.06098293,98369.0,98368.0,0.00807132]
[1734772793065,0.05090926,98369.0,98368.0,0.00807132]
[1734772793268,0.07105664,98369.0,98368.0,0.00807132]
[1734772793675,0.06098294,98369.0,98368.0,0.00807132]
[1734772794977,0.37191368,98369.0,98368.0,0.00807132]
[1734772795194,0.050849,98363.0,98362.0,0.18224535]
[1734772795373,0.06092665,98363.0,98362.0,0.12014535]
[1734772795574,0.06096665,98363.0,98362.0,0.12014535]
[1734772796469,0.06196665,98363.0,98362.0,0.12114535]
[1734772796783,0.050853,98357.0,98350.0,0.09901967]
[1734772796980,0.050858,98347.0,98346.0,0.24292367]
[1734772797279,0.06097565,98347.0,98346.0,0.24292367]
[1734772798065,0.01011765,98347.0,98346.0,0.24292367]
[1734772798264,0.01111765,98347.0,98345.0,0.050859]
[1734772798470,0.01007765,98346.0,98340.0,0.09901967]
[1734772798669,0.01002313,98345.0,98334.0,0.60508367]
[1734772798967,0.050861,98341.0,98339.0,0.050861]
[1734772799181,0.0101375,98340.0,98339.0,0.050861]
[1734772800183,0.0101375,98340.0,98336.0,0.09901967]
[1734772800184,0.050863,98337.0,98336.0,0.09901967]
[1734772800372,0.050863,98337.0,98335.0,0.050864]
[1734772800572,0.01003743,98336.0,98335.0,0.050864]
[1734772801073,0.01003751,98336.0,98335.0,0.050864]
[1734772801783,0.01103751,98336.0,98335.0,0.050864]
[1734772802273,0.01203751,98336.0,98335.0,0.050864]
[1734772803571,0.002,98336.0,98335.0,0.050864]
[1734772808073,0.002,98336.0,98335.0,0.048864]
[1734772823381,0.01214093,98336.0,98335.0,0.048864]
[1734772823687,0.01214125,98336.0,98335.0,0.048864]
[1734772824094,0.01215491,98336.0,98335.0,0.048864]
[1734772825180,0.10295082,98336.0,98335.0,0.048864]
[1734772826491,0.01215491,98336.0,98335.0,0.048864]
[1734772827188,0.01213784,98336.0,98335.0,0.048864]
[1734772829495,0.01212791,98336.0,98335.0,0.048864]
[1734772830898,0.13323885,98336.0,98335.0,0.048864]
[1734772833500,0.01212791,98336.0,98335.0,0.048864]
[1734772835398,0.0121331,98336.0,98335.0,0.048864]
[1734772838395,0.01210355,98336.0,98335.0,0.048864]
[1734772841201,0.01207459,98336.0,98335.0,0.048864]
[1734772842492,0.10314587,98336.0,98335.0,0.048864]
[1734772844598,0.1031265,98336.0,98335.0,0.048864]
[1734772845504,0.01205522,98336.0,98335.0,0.048864]
[1734772846401,0.002,98336.0,98335.0,0.048864]
[1734772847805,0.01205689,98336.0,98335.0,0.048864]
[1734772848009,0.02212636,98336.0,98335.0,0.048864]
[1734772848206,0.01205689,98336.0,98335.0,0.048864]
[1734772848511,0.1131894,98336.0,98335.0,0.048864]
[1734772849912,0.10311989,98336.0,98335.0,0.064144]
[1734772850210,0.11319344,98336.0,98335.0,0.424944]
[1734772851202,0.02213044,98336.0,98335.0,0.424944]
[1734772852711,0.02213341,98336.0,98335.0,0.424944]
[1734772852915,0.11319641,98336.0,98335.0,0.424944]
[1734772855507,0.11320726,98336.0,98335.0,0.424944]
[1734772855916,0.10311989,98336.0,98335.0,0.424944]
[1734772856113,0.11320735,98336.0,98335.0,0.424944]
[1734772857816,0.12111094,98341.0,98339.0,0.050862]
[1734772858022,0.01008537,98340.0,98339.0,0.050862]
[1734772858220,0.19172091,98348.0,98347.0,0.050858]
[1734772858413,0.19172091,98348.0,98347.0,0.411658]
[1734772859008,0.1917819,98348.0,98347.0,0.411658]
[1734772859410,0.1927819,98348.0,98347.0,0.411658]
[1734772859615,0.04126099,98348.0,98347.0,0.411658]
[1734772864022,0.04126099,98348.0,98347.0,0.06413694]
[1734772865213,0.04126099,98348.0,98347.0,0.050858]
[1734772869923,0.05127293,98348.0,98347.0,0.050858]
[1734772872122,0.05126445,98348.0,98347.0,0.050858]
[1734772872524,0.05126184,98348.0,98347.0,0.050858]
[1734772876728,0.050858,98347.0,98345.0,0.25679547]
[1734772876921,0.01000085,98346.0,98345.0,0.25679547]
[1734772877122,0.01004085,98346.0,98345.0,0.25679547]
[1734772877332,0.37084085,98346.0,98345.0,0.24391425]
[1734772877528,0.37084085,98346.0,98343.0,8e-05]
[1734772877742,0.06085985,98345.0,98343.0,8e-05]
[1734772877952,0.01000085,98344.0,98343.0,8e-05]
[1734772878339,0.01004085,98344.0,98343.0,8e-05]
[1734772880050,0.01104085,98344.0,98343.0,8e-05]
[1734772880443,0.01104085,98344.0,98343.0,0.00108]
[1734772880845,0.01103224,98344.0,98343.0,0.00108]
[1734772883550,0.06189124,98344.0,98343.0,0.00108]
[1734772883944,0.06190821,98344.0,98343.0,0.00108]
[1734772885051,0.06190793,98344.0,98343.0,0.00108]
[1734772891864,0.06186922,98344.0,98343.0,0.00108]
[1734772892548,0.051899,98344.0,98343.0,0.00108]
[1734772892861,0.06187007,98344.0,98343.0,0.00108]
[1734772895649,0.06190149,98344.0,98343.0,0.00108]
[1734772898559,0.06189942,98344.0,98343.0,0.00108]
[1734772898956,0.06187899,98344.0,98343.0,0.00108]
[1734772901466,0.06187901,98344.0,98343.0,0.00108]
[1734772908470,0.01102001,98344.0,98343.0,0.03768]
[1734772908663,0.01102001,98344.0,98343.0,0.11288]
[1734772908974,0.00104,98344.0,98343.0,0.11288]
[1734772909970,0.00104,98344.0,98343.0,0.3361675]
[1734772911373,0.00104,98344.0,98343.0,0.43290187]
[1734772912666,0.00104,98344.0,98343.0,0.12816]
[1734772914471,0.15152091,98362.0,98361.0,0.05085]
[1734772914866,0.15152091,98362.0,98361.0,0.05093]
[1734772915782,0.003,98362.0,98361.0,0.05093]
[1734772916971,0.15152091,98372.0,98361.0,0.06303464]
[1734772917278,0.15152091,98372.0,98371.0,0.050925]
[1734772918470,0.003,98372.0,98371.0,0.050925]
[1734772918674,0.004,98372.0,98371.0,0.050925]
[1734772919175,0.001,98372.0,98371.0,0.051925]
[1734772920176,0.12119917,98381.0,98371.0,0.00108]
[1734772920477,0.12119917,98381.0,98380.0,8e-05]
[1734772921169,0.12119917,98381.0,98380.0,0.03988]
[1734772921566,0.05084,98382.0,98380.0,0.03988]
[1734772921567,0.05084,98382.0,98380.0,8e-05]
[1734772922186,0.050847,98368.0,98367.0,0.18273727]
[1734772922578,0.050887,98368.0,98367.0,0.18273727]
[1734772922776,0.05085,98362.0,98360.0,0.06515787]
[1734772923078,0.050891,98361.0,98360.0,0.01226546]
[1734772923278,0.050891,98361.0,98359.0,0.050851]
[1734772923766,4e-05,98360.0,98359.0,0.050851]
[1734772924680,4e-05,98360.0,98359.0,0.051851]
[1734772925181,4e-05,98360.0,98359.0,0.050851]
[1734772925372,0.00104,98360.0,98359.0,0.053851]
[1734772925780,0.00104,98360.0,98359.0,0.06618422]
[1734772931272,0.12106637,98371.0,98359.0,0.01533322]
[1734772931474,0.12106637,98371.0,98370.0,0.050846]
[1734772932577,0.001,98371.0,98370.0,0.050846]
[1734772932781,0.12106637,98388.0,98387.0,0.050837]
[1734772933174,0.12106637,98388.0,98387.0,0.050917]
[1734772933878,0.050836,98389.0,98387.0,0.050917]
[1734772934182,0.050836,98389.0,98388.0,8e-05]
[1734772936187,0.052836,98389.0,98388.0,8e-05]
[1734772936680,0.057836,98389.0,98388.0,8e-05]
[1734772944179,0.418636,98389.0,98388.0,8e-05]
[1734772950391,0.42857501,98389.0,98388.0,8e-05]
[1734772951284,0.418636,98389.0,98388.0,8e-05]
[1734772953493,0.057836,98389.0,98388.0,8e-05]
[1734772955985,0.007,98389.0,98388.0,8e-05]
[1734772957185,0.007,98389.0,98388.0,0.01138402]
[1734772957392,0.007,98389.0,98388.0,8e-05]